[Event "European Women Blitz-ch 2024"]
[Site "Monaco"]
[Date "2025.01.10"]
[Round "12.11"]
[White "Cramling Bellon, Anna"]
[Black "Berend, Elvira"]
[Result "1-0"]
[Annotator "TA"]
[ECO "E11"]
[WhiteElo "2052"]
[BlackElo "2237"]
[PlyCount "62"]
[EventDate "2025.01.06"]
[EventType "swiss"]
[EventCountry "MNC"]
[SourceTitle "playchess.com"]
[Source "ChessBase"]
[SourceQuality "1"]
[TimeControl "180+2"]

{[%evp 11,62,18,21,18,24,32,22,12,6,9,8,0,0,1,14,19,25,24,55,55,55,62,144,92,99,85,116,67,106,72,27,23,61,47,67,33,54,56,49,2,107,71,45,45,375,401,701,370,368,311,662,652,593]} 1. d4 {[%emt 0:00:02]} Nf6 {[%emt 0:00:01]} 2. c4 {[%emt 0:00:01]} e6 {[%emt 0:00:01]} 3. Nf3 {[%emt 0:00:02]} Bb4+ {[%emt 0:00:03]} 4. Bd2 {[%emt 0:00:03]} a5 {[%emt 0:00:01]} 5. a3 {[%emt 0:00:16]} Bxd2+ {[%emt 0:00:02]} 6. Qxd2 {[%emt 0:00:01]} O-O {[%emt 0:00:12]} 7. Nc3 {[%emt 0:00:01]} d6 {[%emt 0:00:10]} 8. e4 {[%emt 0:00:10]} Nc6 {[%emt 0:00:14]} 9. Be2 {[%emt 0:00:13]} e5 {[%emt 0:00:06]} 10. d5 {[%emt 0:00:02]} Ne7 {[%emt 0:00:01]} 11. O-O {[%emt 0:00:02]} Ng6 {[%emt 0:00:12]} 12. g3 {[%emt 0:00:03]} Bg4 {[%emt 0:00:30]} 13. b4 {[%emt 0:00:07]} Nd7 {[%emt 0:00:26]} (13... h6 {simplifies} 14. Rfb1 Nd7 15. Ne1 Bxe2 16. Qxe2 Ne7) 14. Kg2 {[%emt 0:00:19]} h6 {[%emt 0:00:40]} 15. h3 {[%emt 0:00:02]} Bxf3+ {[%emt 0:00:02]} 16. Bxf3 {[%emt 0:00:02]} Qg5 {[%emt 0:00:08]} (16... Ne7 $14) 17. Qxg5 $16 {[%emt 0:00:10]} hxg5 {[%emt 0:00:01]} 18. Bg4 {[%emt 0:00:04]} Nf6 {[%emt 0:00:05]} 19. Rfe1 {[%emt 0:00:31]} (19. Nb5 $16) 19... c6 {[%emt 0:00:05]} 20. c5 {[%emt 0:00:24]} Rfd8 {[%emt 0:00:08]} 21. Red1 {[%emt 0:00:31]} Ne8 {[%emt 0:00:01]} 22. Na4 {[%emt 0:00:20]} axb4 {[%emt 0:00:03]} 23. axb4 {[%emt 0:00:01]} (23. dxc6 $5 bxc6 24. axb4 $14) 23... cxd5 {[%emt 0:00:03]} 24. exd5 {[%emt 0:00:02]} ({Don't play} 24. Rxd5 Ne7 25. Rdd1 Nc6 $11) 24... Ne7 {[%emt 0:00:09]} 25. Nb6 {[%emt 0:00:10]} (25. Bf3 $14) 25... Rab8 {[%emt 0:00:08]} (25... Rxa1 $11 {remains equal.} 26. Rxa1 Nf6 (26... dxc5 27. bxc5 Nxd5 28. Rd1 $11)) 26. Ra7 {[%emt 0:00:01] White is much more active.} f5 {[%emt 0:00:03]} 27. Be2 {[%emt 0:00:04][%cal Oc5c6]} Nc7 $2 {[%emt 0:00:05][%mdl 8192] [#] Black is weak on the light squares} (27... Kf8 $14) 28. c6 $1 $18 {[%emt 0:00:05][%cal Bc5c6,Bc6b7][%mdl 544] And now Nd7 would win.} Kf8 {[%emt 0:00:07]} (28... Ncxd5 $142 29. Nxd5 Nxc6) (28... Nxc6 29. dxc6) 29. cxb7 {[%emt 0:00:04]} e4 {[%emt 0:00:06]} 30. Bc4 {[%emt 0:00:05]} Ne8 $2 {[%emt 0:00:06]} (30... Ng8 31. b5 Nf6) 31. Rda1 {[%emt 0:00:03]} Nf6 {[%emt 0:00:05]} 1-0

[Event "European Women Blitz-ch 2024"]
[Site "Monaco"]
[Date "2025.01.10"]
[Round "12.12"]
[White "Kulon, Klaudia"]
[Black "Hrebenshchykova, Yelyzaveta"]
[Result "1-0"]
[Annotator "TA"]
[ECO "A13"]
[WhiteElo "2393"]
[BlackElo "2280"]
[PlyCount "57"]
[EventDate "2025.01.06"]
[EventType "swiss"]
[EventCountry "MNC"]
[SourceTitle "playchess.com"]
[Source "ChessBase"]
[SourceQuality "1"]
[TimeControl "180+2"]

{[%evp 9,57,-6,22,27,41,34,31,0,6,14,26,15,17,22,20,-165,-35,-26,-18,-32,-50,-180,-192,-174,-104,-108,-97,-88,-54,-56,-48,-54,54,55,54,-35,0,-26,0,-63,285,276,337,345,323,345,348,341,1549,1507]} 1. c4 {[%emt 0:00:01]} Nf6 {[%emt 0:00:02]} 2. g3 {[%emt 0:00:00]} e6 {[%emt 0:00:06][%cal Be7e6,Be6e5,Be5e4][%mdl 32]} 3. Bg2 {[%emt 0:00:01]} d5 {[%emt 0:00:01]} 4. Nf3 {[%emt 0:00:01]} d4 {[%emt 0:00:03]} 5. O-O {[%emt 0:00:02]} Nc6 {[%emt 0:00:01]} 6. e3 {[%emt 0:00:03]} e5 {[%emt 0:00:01]} 7. exd4 {[%emt 0:00:01]} e4 {[%emt 0:00:02]} 8. Re1 {[%emt 0:00:14] d5 would now be deadly.} Be7 $1 {[%emt 0:00:09]} 9. Ng5 {[%emt 0:00:02]} Nxd4 {[%emt 0:00:03]} 10. Nxe4 {[%emt 0:00:04]} (10. Bxe4 Nxe4 11. Nxe4 h5 $17) 10... Nxe4 {[%emt 0:00:01]} 11. Bxe4 {[%emt 0:00:02]} h5 {[%emt 0:00:05]} 12. h4 $2 {[%emt 0:00:14]} (12. d3 $11 {and White stays safe.}) 12... c6 {[%emt 0:00:15]} (12... Bg4 13. f3 Be6 14. d3 $17) (12... g5 $1 $19 {[%cal Rg5h4]} 13. hxg5 Bg4 14. Qa4+ Kf8) 13. d3 $1 $15 {[%emt 0:00:01]} Bg4 $36 {[%emt 0:00:07][%mdl 3072] Black has compensation. Black is pushing.} 14. f3 {[%emt 0:00:01]} Be6 {[%emt 0:00:01]} 15. f4 {[%emt 0:00:19]} ({White must play} 15. Be3 $1 $15) 15... Bg4 $19 {[%emt 0:00:31]} 16. Qd2 {[%emt 0:00:01] [#]} O-O {[%emt 0:00:33]} (16... Bc5 $1 $19 17. Bh1+ (17. Bxc6+ $2 Kf8 $19) 17... Be7 (17... Ne2+ $2 18. Kh2 $18)) 17. Qf2 $17 {[%emt 0:00:05]} Re8 {[%emt 0:00:07]} 18. Be3 {[%emt 0:00:03]} Bf6 {[%emt 0:00:14][%cal Oe8e4] And now ...Rxe4! would win.} 19. Nc3 {[%emt 0:00:04][%cal Bb1c3,Bc3e4,Be4c5][%mdl 32]} Qd7 {[%emt 0:00:02]} 20. Bg2 {[%emt 0:00:14]} g6 {[%emt 0:00:14]} ({Better is} 20... Nf5 $15 21. Ne4 Nxe3 (21... Qxd3 22. Nxf6+ gxf6 23. Bf1 $17) 22. Nxf6+ gxf6 23. Rxe3 Rxe3 24. Qxe3 Re8 25. Qxa7 Qxd3) 21. Ne4 $14 {[%emt 0:00:05]} (21. Nd5 Ne2+ (21... cxd5 22. Bxd4 Bxd4 23. Qxd4 $16) 22. Rxe2 cxd5 $11) 21... Bg7 {[%emt 0:00:02]} 22. Kh2 {[%emt 0:00:01]} (22. Nc5 $14 Qd6 23. Nxb7) 22... Rad8 {[%emt 0:00:05]} (22... Nf5 {with more complications.} 23. Bxa7 Qxd3 24. Bf1 Qf3) 23. Nc5 {[%emt 0:00:11]} Qc7 {[%emt 0:00:29]} (23... Qe7 {simplifies} 24. Ne4 f5 25. Nc3 Qf7) 24. Bxd4 {[%emt 0:00:03]} (24. Qd2 $11) 24... Bxd4 $4 {[%emt 0:00:00][%mdl 8192]} (24... Rxe1 $15 {keeps the upper hand.} 25. Qxe1 Bxd4 (25... Rxd4 26. Rb1 $15)) 25. Rxe8+ $18 {[%emt 0:00:01]} Kg7 {[%emt 0:00:02] [#]} 26. Qe1 $1 {[%emt 0:00:04]} Rxe8 {[%emt 0:00:11]} 27. Qxe8 {[%emt 0:00:02]} Bxc5 {[%emt 0:00:01]} 28. Re1 {[%emt 0:00:05] Inhibits Be7.} Bd4 $2 {[%emt 0:00:01]} (28... Bd7 29. Qe5+ Qxe5 30. Rxe5 Bd6) 29. Re7 {[%emt 0:00:03]} 1-0

[Event "European Women Blitz-ch 2024"]
[Site "Monaco"]
[Date "2025.01.10"]
[Round "12.13"]
[White "Shvedova, Alexandra"]
[Black "Zhukova, Natalia"]
[Result "1-0"]
[Annotator "TA"]
[ECO "C55"]
[WhiteElo "2266"]
[BlackElo "2306"]
[PlyCount "69"]
[EventDate "2025.01.06"]
[EventType "swiss"]
[EventCountry "MNC"]
[SourceTitle "playchess.com"]
[Source "ChessBase"]
[SourceQuality "1"]
[TimeControl "180+2"]

{[%evp 13,68,32,36,41,35,37,42,21,26,20,18,10,23,3,1,0,-9,-79,-64,-72,0,-19,-14,-93,-80,-95,-58,-147,-114,-214,-256,-226,-102,-162,-88,-153,-51,-56,-40,-166,-152,-255,-260,-268,-262,-262,-175,-166,0,0,12,0,405,368,368,361,29999]} 1. e4 {[%emt 0:00:02]} e5 {[%emt 0:00:01]} 2. Nf3 {[%emt 0:00:01]} Nc6 {[%emt 0:00:01]} 3. Bc4 {[%emt 0:00:02]} Nf6 {[%emt 0:00:02]} 4. d3 {[%emt 0:00:01]} Be7 {[%emt 0:00:03]} 5. O-O {[%emt 0:00:04]} O-O {[%emt 0:00:02]} 6. Re1 {[%emt 0:00:01]} d6 {[%emt 0:00:02]} 7. a4 {[%emt 0:00:02]} Na5 {[%emt 0:00:15]} 8. Ba2 {[%emt 0:00:02]} c5 {[%emt 0:00:01]} 9. c3 {[%emt 0:00:09]} Nc6 {[%emt 0:00:05]} 10. Nbd2 {[%emt 0:00:04]} Be6 {[%emt 0:00:08]} 11. Nc4 {[%emt 0:00:14]} h6 {[%emt 0:00:06]} 12. h3 {[%emt 0:00:02]} Qd7 {[%emt 0:00:18]} 13. d4 {[%emt 0:00:33]} exd4 {[%emt 0:00:26]} (13... cxd4 {is more complex.} 14. cxd4 exd4 15. e5 Nd5) 14. cxd4 {[%emt 0:00:02]} cxd4 {[%emt 0:00:56]} 15. Nxd4 {[%emt 0:00:04]} (15. e5 $1 $11 Nd5 16. Nxd4 Nxd4 17. Qxd4) 15... Nxd4 $17 {[%emt 0:00:09]} 16. Qxd4 {[%emt 0:00:02]} Rac8 {[%emt 0:00:07]} (16... Qxa4 $17 17. b3 Qc6) 17. Bf4 {[%emt 0:00:35][%cal Rc4d6]} Qxa4 {[%emt 0:00:22]} 18. b3 {[%emt 0:00:01]} (18. b4 $11 {remains equal.} Qxb4 19. Reb1) 18... Qb4 {[%emt 0:00:03]} 19. Rad1 {[%emt 0:00:25][%cal Rf4d6]} (19. Bxd6 $2 Bxd6 20. Qxd6 Rxc4 21. Qxb4 Rxb4 $19) 19... Rfd8 {[%emt 0:00:09]} 20. Bd2 {[%emt 0:00:42]} (20. Bxd6 $15 Bxd6 (20... Rxc4 $2 21. Qxc4 $18) 21. Nxd6 Qxd4 22. Rxd4) 20... Qc5 {[%emt 0:00:01]} 21. Be3 {[%emt 0:00:09]} (21. Qa1 $17) 21... Qxd4 $19 {[%emt 0:00:08]} 22. Bxd4 {[%emt 0:00:04] [#]} Nd7 {[%emt 0:00:13]} (22... d5 $1 $19 {[%cal Rd5c4] is more deadly.} 23. Nd6 Bxd6 (23... Rxd6 $2 24. e5 $19)) 23. Rd2 {[%emt 0:00:10]} (23. f4 $17) 23... b6 {[%emt 0:00:00]} (23... Nc5 $19 24. f4 d5 25. exd5 Rxd5) 24. f4 {[%emt 0:00:03]} (24. Ne3 $142) 24... f6 {[%emt 0:00:02]} (24... Nc5 $17 25. f5 Bd7) 25. Bf2 {[%emt 0:00:04]} Nc5 {[%emt 0:00:01]} 26. Rd4 {[%emt 0:00:10]} (26. b4 $15 Nb3 27. Ne3 (27. Bxb3 Bxc4 28. Bxc4+ Rxc4 $17) 27... Nxd2 28. Bxe6+ Kf8 29. Nd5) 26... Bf7 {[%emt 0:00:02]} 27. Red1 {[%emt 0:00:01]} (27. Ne3 $17) 27... Ne6 {[%emt 0:00:01][%csl LRd4,LRf4]} 28. R4d2 {[%emt 0:00:01]} Nxf4 {[%emt 0:00:02]} 29. Bg3 {[%emt 0:00:02]} Ne6 {[%emt 0:00:06]} 30. Bxd6 {[%emt 0:00:02] [#]} Bxd6 $2 {[%emt 0:00:03]} (30... Bf8 $1 $19 {White must now prevent ...b5.} 31. e5 b5) 31. Nxd6 $11 {[%emt 0:00:01][%cal Ob3b4]} Rc7 {[%emt 0:00:03]} 32. b4 {[%emt 0:00:01] and Nxf7 should not be overlooked} Ng5 $2 {[%emt 0:00:02][%mdl 8192]} (32... Rcd7 $1 $11 {and Black has nothing to worry.}) 33. Nxf7 $18 {[%emt 0:00:03]} Rxd2 {[%emt 0:00:01]} 34. Nxg5+ {[%emt 0:00:06]} Rxa2 $2 {[%emt 0:00:01]} (34... Kh8 $18 35. Rxd2 (35. Nf7+ Rxf7 36. Rxd2 Rc7 $18) 35... hxg5) 35. Rd8# {[%emt 0:00:01]} 1-0

[Event "European Women Blitz-ch 2024"]
[Site "Monaco"]
[Date "2025.01.10"]
[Round "12.14"]
[White "Charkhalashvili, Inga"]
[Black "De Seroux, Camille"]
[Result "1-0"]
[Annotator "TA"]
[ECO "A50"]
[WhiteElo "2240"]
[BlackElo "2068"]
[PlyCount "53"]
[EventDate "2025.01.06"]
[EventType "swiss"]
[EventCountry "MNC"]
[SourceTitle "playchess.com"]
[Source "ChessBase"]
[SourceQuality "1"]
[TimeControl "180+2"]

{[%evp 11,53,36,50,45,72,54,52,36,26,11,12,21,27,0,20,20,20,28,25,29,78,66,61,45,70,66,72,13,62,0,0,0,99,-33,416,375,397,387,2089,2091,29997,1223,29998,29999]} 1. d4 {[%emt 0:00:01]} Nf6 {[%emt 0:00:02]} 2. c4 {[%emt 0:00:00]} Nc6 {[%emt 0:00:01]} 3. Nc3 {[%emt 0:00:04]} e5 {[%emt 0:00:02]} 4. d5 {[%emt 0:00:02]} Ne7 {[%emt 0:00:04]} 5. e4 {[%emt 0:00:06]} Ng6 {[%emt 0:00:03]} 6. Bd3 {[%emt 0:00:16]} Bb4 {[%emt 0:00:04]} 7. Nge2 {[%emt 0:00:03]} a5 {[%emt 0:00:15]} 8. O-O {[%emt 0:00:04][%cal Bh1f1,Bf1f3,Bf3f2][%mdl 32]} O-O {[%emt 0:00:06]} 9. a3 {[%emt 0:00:18]} Bc5 {[%emt 0:00:03]} 10. Be3 {[%emt 0:00:13]} Bxe3 {[%emt 0:00:26]} 11. fxe3 {[%emt 0:00:01][%cal Od5d6]} Ng4 {[%emt 0:00:10]} 12. Rf3 {[%emt 0:00:17]} d6 {[%emt 0:00:30]} 13. h3 {[%emt 0:00:04]} Nf6 {[%emt 0:00:03]} 14. Ng3 {[%emt 0:00:06]} Nh4 {[%emt 0:00:07]} 15. Rf2 {[%emt 0:00:02]} c6 {[%emt 0:00:17]} (15... Nd7 $11 {deserves consideration.}) 16. Kh2 {[%emt 0:00:19]} Nd7 {[%emt 0:00:31]} 17. Be2 {[%emt 0:00:24] White is more active.} Qg5 {[%emt 0:00:04]} 18. Qd2 $1 {[%emt 0:00:12]} Nc5 {[%emt 0:00:04]} 19. Bd1 {[%emt 0:00:07] Against Nb3} (19. Raf1 $16) 19... a4 {[%emt 0:00:05]} (19... Qh6 $11) 20. dxc6 {[%emt 0:00:08]} (20. Bc2 $14) 20... bxc6 $11 {[%emt 0:00:14]} 21. Qxd6 {[%emt 0:00:11]} Ne6 {[%emt 0:00:02]} (21... Qxe3 $11 22. Re2 Qd4) 22. Qxc6 {[%emt 0:00:03]} (22. Nxa4 Rd8 (22... Qxe3 23. Qd2 $11) 23. Qxc6 Ra6 $19) (22. Bxa4 $16 Rd8 23. Qb4 (23. Qxc6 Bd7 $14) 23... Qxe3 24. Raf1) 22... Ba6 $2 {[%emt 0:00:03][%mdl 8192]} (22... Ra6 $15 {stays ahead.} 23. Qb5 Qxe3) 23. Nd5 $18 {[%emt 0:00:11]} (23. Nxa4 Qxe3 24. Re2 Qg5 $11) (23. Bxa4 Rfc8 $18) 23... Rfc8 {[%emt 0:00:07]} 24. Qd7 {[%emt 0:00:03]} ({Weaker is} 24. Qxa4 Bxc4 25. Qd7 Rf8 $18) 24... Rc7 $2 {[%emt 0:00:17]} (24... Kh8 25. Be2 (25. Qxa4 Bxc4 26. Qb4 Bxd5 $18) (25. Rxf7 Qh6 $18) (25. Qxf7 $2 {loses.} Rf8 $19) 25... Nc5 26. Qxf7 h6) 25. Nxc7 {[%emt 0:00:01]} Nxc7 {[%emt 0:00:02]} 26. Qxf7+ {[%emt 0:00:02]} Kh8 {[%emt 0:00:02] [#]} 27. Qf8+ $3 {[%emt 0:00:01]} 1-0

[Event "European Women Blitz-ch 2024"]
[Site "Monaco"]
[Date "2025.01.10"]
[Round "12.15"]
[White "Injac, Teodora"]
[Black "Calzetta Ruiz, Monica"]
[Result "1-0"]
[Annotator "TA"]
[ECO "D05"]
[WhiteElo "2453"]
[BlackElo "2230"]
[PlyCount "61"]
[EventDate "2025.01.06"]
[EventType "swiss"]
[EventCountry "MNC"]
[SourceTitle "playchess.com"]
[Source "ChessBase"]
[SourceQuality "1"]
[TimeControl "180+2"]

{[%evp 18,61,11,4,6,0,5,-29,0,0,16,9,0,0,43,35,73,77,60,0,10,0,0,0,0,0,0,0,0,-10,-8,-12,-12,-7,-14,-12,-10,-8,0,-6,0,0,0,-3,0,0]} 1. d4 {[%emt 0:00:01]} d5 {[%emt 0:00:01]} 2. Nf3 {[%emt 0:00:01]} c5 {[%emt 0:00:01]} 3. e3 {[%emt 0:00:15]} Nc6 {[%emt 0:00:06]} 4. c3 {[%emt 0:00:05]} e6 {[%emt 0:00:07]} 5. Nbd2 {[%emt 0:00:03]} Nf6 {[%emt 0:00:02]} 6. Bd3 {[%emt 0:00:01]} Bd6 {[%emt 0:00:04]} 7. O-O {[%emt 0:00:02]} O-O {[%emt 0:00:02]} 8. dxc5 {[%emt 0:00:07]} Bxc5 {[%emt 0:00:01]} 9. b4 {[%emt 0:00:00]} Bd6 {[%emt 0:00:04]} 10. Bb2 {[%emt 0:00:10]} b6 {[%emt 0:00:11]} 11. Qe2 {[%emt 0:00:18]} Bb7 {[%emt 0:00:24]} 12. e4 {[%emt 0:00:01]} dxe4 {[%emt 0:00:02]} 13. Nxe4 {[%emt 0:00:01]} Be7 {[%emt 0:00:17]} 14. Rad1 {[%emt 0:00:18] and Nxf6+ should not be overlooked} Qc7 {[%emt 0:00:04]} 15. a3 {[%emt 0:00:40]} Rad8 {[%emt 0:00:48]} 16. c4 {[%emt 0:00:06]} Nxe4 {[%emt 0:00:14]} 17. Qxe4 {[%emt 0:00:01][%csl Gd3][%cal Re4h7]} g6 {[%emt 0:00:04][%cal Oc6b4]} 18. Qg4 {[%emt 0:00:13]} (18. Qe3 $14) 18... f5 {[%emt 0:00:20]} 19. Qh3 {[%emt 0:00:07][%cal Oc4c5]} e5 {[%emt 0:00:05] And now ...e4 would win.} 20. b5 {[%emt 0:00:17]} Nd4 {[%emt 0:00:05]} 21. Nxd4 {[%emt 0:00:15]} exd4 {[%emt 0:00:02]} 22. Rfe1 {[%emt 0:00:01]} Bf6 {[%emt 0:00:06]} 23. Re6 {[%emt 0:00:07] [#]} Be4 $1 {[%emt 0:00:26]} 24. Bxe4 {[%emt 0:00:14]} (24. Re1 {is interesting.} Qc8 25. Bxe4 fxe4 26. R6xe4 Qxc4 27. Qe6+) 24... fxe4 {[%emt 0:00:01]} 25. Rxe4 {[%emt 0:00:14]} Qxc4 {[%emt 0:00:01]} 26. Qe6+ {[%emt 0:00:06]} Qxe6 {[%emt 0:00:04]} 27. Rxe6 {[%emt 0:00:01]} Kf7 {[%emt 0:00:04]} 28. Rc6 {[%emt 0:00:02]} Rfe8 {[%emt 0:00:06]} 29. Kf1 {[%emt 0:00:01]} Rd7 {[%emt 0:00:03]} 30. g3 {[%emt 0:00:06]} Bg7 {[%emt 0:00:03]} 31. a4 {[%emt 0:00:04]} 1-0

[Event "European Women Blitz-ch 2024"]
[Site "Monaco"]
[Date "2025.01.10"]
[Round "12.16"]
[White "Javakhishvili, Lela"]
[Black "Garcia Martin, Marta"]
[Result "1-0"]
[Annotator "TA"]
[ECO "A37"]
[WhiteElo "2426"]
[BlackElo "2323"]
[PlyCount "61"]
[EventDate "2025.01.06"]
[EventType "swiss"]
[EventCountry "MNC"]
[SourceTitle "playchess.com"]
[Source "ChessBase"]
[SourceQuality "1"]
[TimeControl "180+2"]

{[%evp 10,61,13,0,16,14,23,30,34,23,34,23,17,15,21,0,78,74,66,-30,1,-38,0,0,0,-5,-13,-12,-16,-18,-18,-34,-4,-8,0,0,0,-7,0,0,0,-10,0,0,0,0,0,0,0,0,0,0,1294,1277]} 1. Nf3 {[%emt 0:00:01]} g6 {[%emt 0:00:02]} 2. c4 {[%emt 0:00:04]} Bg7 {[%emt 0:00:02]} 3. Nc3 {[%emt 0:00:01]} c5 {[%emt 0:00:13]} 4. g3 {[%emt 0:00:04]} Nc6 {[%emt 0:00:02]} 5. Bg2 {[%emt 0:00:01]} d6 {[%emt 0:00:03]} 6. a3 {[%emt 0:00:03]} a5 {[%emt 0:00:08]} 7. O-O {[%emt 0:00:07]} e6 {[%emt 0:00:29] [#]} 8. d4 $1 {[%emt 0:00:10]} cxd4 {[%emt 0:00:03]} 9. Nb5 $1 {[%emt 0:00:01][%cal Rf3d4]} Nge7 {[%emt 0:00:10]} 10. Nfxd4 {[%emt 0:00:04]} Nxd4 {[%emt 0:00:16]} 11. Nxd4 {[%emt 0:00:02]} O-O {[%emt 0:00:09]} 12. Nb5 {[%emt 0:00:02]} Ra6 {[%emt 0:00:13]} (12... d5 $11 {remains equal.}) 13. Rb1 {[%emt 0:00:12] White is more active.} d5 {[%emt 0:00:24]} 14. c5 {[%emt 0:00:03]} (14. b3 $14) 14... a4 {[%emt 0:00:24]} 15. e4 {[%emt 0:00:11]} Bd7 {[%emt 0:00:05]} 16. Nd6 {[%emt 0:02:28]} Bc6 {[%emt 0:00:01]} 17. Bg5 {[%emt 0:00:00]} dxe4 {[%emt 0:00:12]} 18. Nxe4 {[%emt 0:00:00]} Qxd1 {[%emt 0:00:12]} 19. Rfxd1 {[%emt 0:00:00]} Nd5 {[%emt 0:00:01]} 20. Nd6 {[%emt 0:00:00][%cal Be4d6,Bd6c4,Bc4a5,Ba5c6][%mdl 32]} h6 {[%emt 0:00:01]} 21. Bd2 {[%emt 0:00:00]} Rd8 {[%emt 0:00:14]} 22. Bb4 {[%emt 0:00:00]} Raa8 {[%emt 0:00:07]} 23. h4 {[%emt 0:00:00]} Bf8 {[%emt 0:00:01]} 24. Nc4 {[%emt 0:00:00]} Rab8 {[%emt 0:00:11]} 25. Na5 {[%emt 0:00:00]} Nxb4 {[%emt 0:00:02]} 26. axb4 {[%emt 0:00:00]} Bxg2 {[%emt 0:00:03]} 27. Kxg2 {[%emt 0:00:00]} Rxd1 {[%emt 0:00:04]} 28. Rxd1 $11 {[%emt 0:00:00] and Rd7 should not be overlooked. KRB-KRN} b6 $1 {[%emt 0:00:01]} 29. Nc6 {[%emt 0:00:00]} Rc8 $1 {[%emt 0:00:01]} 30. Na7 {[%emt 0:00:00]} Rb8 $2 {[%emt 0:00:01][%mdl 8192]} (30... Ra8 $11 31. Nc6 (31. cxb6 Rb8 $11) 31... Rc8 (31... bxc5 32. b5 $15)) 31. c6 {[%emt 0:00:00]} 1-0

[Event "European Women Blitz-ch 2024"]
[Site "Monaco"]
[Date "2025.01.10"]
[Round "12.17"]
[White "Cramling, Pia"]
[Black "Caku, Kler"]
[Result "1-0"]
[Annotator "TA"]
[ECO "D36"]
[WhiteElo "2416"]
[BlackElo "2036"]
[PlyCount "89"]
[EventDate "2025.01.06"]
[EventType "swiss"]
[EventCountry "MNC"]
[SourceTitle "playchess.com"]
[Source "ChessBase"]
[SourceQuality "1"]
[TimeControl "180+2"]

{[%evp 25,89,26,29,31,39,29,41,30,73,64,74,66,291,303,327,315,316,330,348,325,499,360,390,287,288,265,269,275,280,275,292,265,314,310,385,387,477,475,724,399,757,761,716,712,818,813,943,808,975,985,1077,854,1589,1699,2144,2299,29992,29982,29992,29973,29989,29988,29988,29989,29994,29995]} 1. d4 {[%emt 0:00:00]} d5 {[%emt 0:00:00]} 2. c4 {[%emt 0:00:01]} e6 {[%emt 0:00:01]} 3. Nc3 {[%emt 0:00:02]} Nf6 {[%emt 0:00:01]} 4. cxd5 {[%emt 0:00:03]} exd5 {[%emt 0:00:01]} 5. Bg5 {[%emt 0:00:02]} Be7 {[%emt 0:00:01]} 6. e3 {[%emt 0:00:01]} c6 {[%emt 0:00:01]} 7. Bd3 {[%emt 0:00:03]} O-O {[%emt 0:00:02]} 8. Qc2 {[%emt 0:00:01]} Nbd7 {[%emt 0:00:01]} 9. h3 {[%emt 0:00:11]} h6 {[%emt 0:00:00]} 10. Bf4 {[%emt 0:00:01]} Re8 {[%emt 0:00:04]} 11. Nf3 {[%emt 0:00:05]} Nf8 {[%emt 0:00:01]} 12. O-O {[%emt 0:00:03]} Bd6 {[%emt 0:00:01]} 13. Bxd6 {[%emt 0:00:05]} Qxd6 {[%emt 0:00:01]} 14. a3 {[%emt 0:00:02]} N8d7 {[%emt 0:00:14]} 15. b4 {[%emt 0:00:08]} a6 {[%emt 0:00:01]} 16. Rab1 {[%emt 0:00:03]} a5 {[%emt 0:00:18]} 17. Rfc1 {[%emt 0:00:22] White is more active.} b5 {[%emt 0:00:22]} 18. e4 {[%emt 0:00:05][%cal Be3e4,Be4e5][%mdl 32]} axb4 $2 {[%emt 0:00:23]} ({Black should try} 18... Nxe4 $14 19. Nxe4 dxe4 20. Bxe4 Bb7) 19. e5 $18 {[%emt 0:00:15]} (19. axb4 dxe4 20. Nxe4 Nxe4 21. Bxe4 Nb8 $18) 19... Qf8 {[%emt 0:00:13]} 20. axb4 {[%emt 0:00:07]} Nh5 {[%emt 0:00:11]} 21. Ne2 {[%emt 0:00:02] Prevents Nf4} g6 {[%emt 0:00:17]} 22. Qxc6 {[%emt 0:00:08]} Ra3 {[%emt 0:00:13]} (22... Rb8 $142 23. Qxd5 (23. Bxb5 Rd8 $18) 23... Nb6 24. Qxb5 Be6) 23. Rc3 {[%emt 0:00:47]} ({Less strong is} 23. Qxb5 Ba6 $18) 23... Nb8 {[%emt 0:00:24]} 24. Qc5 {[%emt 0:00:13]} ({Don't do} 24. Qxd5 Rxc3 25. Nxc3 Nf4 $18) 24... Rxc3 {[%emt 0:00:07]} 25. Qxf8+ {[%emt 0:00:07]} Kxf8 {[%emt 0:00:01]} 26. Nxc3 {[%emt 0:00:01]} Nf4 {[%emt 0:00:01]} 27. Bxb5 {[%emt 0:00:04]} Rd8 {[%emt 0:00:01]} 28. Bf1 {[%emt 0:00:10]} Bb7 {[%emt 0:00:07]} 29. Na4 {[%emt 0:00:05]} Bc6 {[%emt 0:00:03]} 30. b5 {[%emt 0:00:01]} Bb7 {[%emt 0:00:00]} 31. Nc5 {[%emt 0:00:01]} Ba8 {[%emt 0:00:26]} (31... Bc8 $142 32. b6 Bd7) 32. b6 {[%emt 0:00:01]} Nc6 $2 {[%emt 0:00:02]} (32... Bc6 33. Nd2 Ne6) 33. b7 {[%emt 0:00:02]} Bxb7 {[%emt 0:00:01]} 34. Rxb7 {[%emt 0:00:48]} Rc8 {[%emt 0:00:10]} 35. g3 {[%emt 0:00:00]} Nh5 {[%emt 0:00:07]} 36. Nd7+ {[%emt 0:00:00]} Kg7 {[%emt 0:00:01]} 37. Nb6 {[%emt 0:00:00][%csl LRc8,LRd5]} Rd8 {[%emt 0:00:05]} 38. Bg2 {[%emt 0:00:00]} Nb4 {[%emt 0:00:03]} 39. e6 {[%emt 0:00:00]} Rf8 {[%emt 0:00:07]} 40. Ne5 {[%emt 0:00:00]} Kf6 {[%emt 0:00:03]} 41. exf7 {[%emt 0:00:00]} Ng7 {[%emt 0:00:05]} 42. Ned7+ {[%emt 0:00:00]} Ke7 {[%emt 0:00:02]} 43. Nxf8+ {[%emt 0:00:00]} Kxf8 {[%emt 0:00:01]} 44. Nxd5 {[%emt 0:00:00]} Nxd5 {[%emt 0:00:03]} 45. Bxd5 {[%emt 0:00:22]} 1-0